bitfinex/quotes_BTCUSD_20250530
["timestamp","ask_amount","ask_price","bid_price","bid_amount"]
[1748589445450,0.21133322,105600.0,105590.0,1.43258776]
[1748589445892,0.21133322,105600.0,105590.0,1.44205817]
[1748589446825,0.21133322,105600.0,105590.0,1.43258776]
[1748589447261,0.21133322,105600.0,105590.0,1.44205799]
[1748589447729,0.21133322,105600.0,105590.0,1.45152813]
[1748589448630,0.21133322,105600.0,105590.0,1.43258776]
[1748589448631,0.20186362,105600.0,105590.0,1.43258776]
[1748589448852,0.20186362,105600.0,105590.0,1.44205817]
[1748589449291,0.20186362,105600.0,105590.0,1.14495817]
[1748589449959,0.19239393,105600.0,105590.0,0.9271348]
[1748589450175,0.19239393,105600.0,105590.0,0.6302548]
[1748589450390,0.19239393,105600.0,105590.0,0.93656539]
[1748589452175,0.19239393,105600.0,105590.0,0.9270948]
[1748589452733,0.19239393,105600.0,105590.0,0.93656539]
[1748589452940,0.19239393,105600.0,105590.0,1.13544767]
[1748589453597,0.19039393,105600.0,105590.0,0.9270948]
[1748589453805,0.19039393,105600.0,105590.0,0.5215948]
[1748589454056,0.18939393,105600.0,105590.0,0.49105395]
[1748589454304,0.29655652,105600.0,105590.0,0.09105395]
[1748589454514,0.29655652,105600.0,105540.0,0.2550391]
[1748589454515,0.20843138,105550.0,105540.0,0.13008049]
[1748589454728,0.20843138,105550.0,105540.0,0.22113444]
[1748589454968,0.20843138,105550.0,105540.0,0.5184265]
[1748589455428,0.20843138,105550.0,105540.0,0.19405894]
[1748589455632,0.20843138,105550.0,105540.0,0.18450601]
[1748589455840,0.20843138,105550.0,105540.0,0.48230601]
[1748589456453,0.20843138,105550.0,105540.0,0.18550601]
[1748589456663,0.20843138,105550.0,105540.0,0.48234601]
[1748589457283,0.00947355,105550.0,105540.0,0.15713657]
[1748589457489,0.02842146,105550.0,105540.0,0.73880648]
[1748589457700,0.22737929,105550.0,105540.0,0.73543818]
[1748589457905,0.02842137,105550.0,105540.0,0.75438735]
[1748589458119,0.03789546,105550.0,105540.0,0.73543818]
[1748589458319,0.00947355,105550.0,105540.0,0.7449129]
[1748589458537,0.00947283,105560.0,105550.0,0.24814596]
[1748589458749,0.23683003,105560.0,105550.0,0.74820009]
[1748589458953,0.22735756,105560.0,105550.0,0.74820009]
[1748589459176,0.22735756,105560.0,105550.0,0.72925254]
[1748589459390,0.20841199,105560.0,105550.0,0.5302948]
[1748589459797,0.20841199,105560.0,105550.0,0.93976898]
[1748589460256,0.19893898,105560.0,105550.0,0.93976898]
[1748589460473,0.01894611,105560.0,105550.0,1.15767409]
[1748589460689,0.01894521,105560.0,105550.0,1.15767337]
[1748589460898,0.03789114,105560.0,105550.0,1.15767337]
[1748589461172,0.03789114,105560.0,105550.0,1.45477337]
[1748589461384,0.00947247,105560.0,105550.0,1.45477337]
[1748589461633,0.01894521,105560.0,105550.0,1.47127337]
[1748589461841,0.00947247,105560.0,105550.0,1.47127337]
[1748589462053,0.02841786,105560.0,105550.0,1.47127337]
[1748589463175,0.01894503,105560.0,105550.0,1.47127337]
[1748589463601,0.02841777,105560.0,105550.0,1.47127337]
[1748589464078,0.01894503,105560.0,105550.0,1.47127337]
[1748589464292,0.01894413,105570.0,105560.0,0.23388446]
[1748589464498,0.0284158,105570.0,105560.0,0.71469841]
[1748589464744,0.02841544,105570.0,105560.0,0.74443926]
[1748589464910,0.03788764,105570.0,105560.0,0.74443926]
[1748589465104,0.03788764,105570.0,105560.0,1.14443926]
[1748589465272,0.22733601,105570.0,105560.0,1.10376661]
[1748589465499,0.03788826,105570.0,105560.0,1.11323935]
[1748589465722,0.04088826,105570.0,105560.0,1.11323935]
[1748589465921,0.23033664,105570.0,105560.0,1.10376661]
[1748589466290,0.02194449,105570.0,105560.0,1.11323926]
[1748589467322,0.02194449,105570.0,105560.0,1.12973926]
[1748589468189,0.003,105570.0,105560.0,1.14603926]
[1748589468401,0.01247158,105570.0,105560.0,1.14603926]
[1748589468614,0.02194333,105570.0,105560.0,1.14603926]
[1748589468820,0.02194342,105570.0,105560.0,1.14603926]
[1748589469042,0.02194333,105570.0,105560.0,1.14603926]
[1748589469251,0.04088728,105570.0,105560.0,1.14603926]
[1748589469707,0.04088719,105570.0,105560.0,1.14603926]
[1748589469931,0.003,105570.0,105560.0,1.60666326]
[1748589470368,0.003,105570.0,105560.0,1.94666326]
[1748589470827,0.003,105570.0,105560.0,2.90561026]
[1748589471689,0.001,105570.0,105560.0,1.78313926]
[1748589471900,0.02841033,105590.0,105580.0,0.2178432]
[1748589472139,0.03788074,105590.0,105580.0,1.01141715]
[1748589472559,0.03788074,105590.0,105580.0,1.425958]
[1748589473202,0.04735133,105590.0,105580.0,1.425958]
[1748589473847,0.2178231,105590.0,105580.0,1.20188629]
[1748589474072,0.2178231,105590.0,105580.0,1.40078741]
[1748589474290,0.2178231,105590.0,105580.0,1.41025863]
[1748589474497,0.2178231,105590.0,105580.0,1.41025845]
[1748589474725,0.2178231,105590.0,105580.0,1.42645845]
[1748589475149,0.2178231,105590.0,105580.0,1.40078741]
[1748589475595,0.2178231,105590.0,105580.0,1.41025863]
[1748589475840,0.19888246,105590.0,105580.0,1.17783395]
[1748589476076,0.19888246,105590.0,105580.0,0.88103395]
[1748589476292,0.19888246,105590.0,105580.0,1.37673516]
[1748589476729,0.19888246,105590.0,105580.0,1.17783395]
[1748589477154,0.19888246,105590.0,105580.0,1.18730544]
[1748589477791,0.19888246,105590.0,105580.0,1.38620665]
[1748589478920,0.19888246,105590.0,105580.0,1.17783395]
[1748589479128,0.19888246,105590.0,105580.0,1.17779395]
[1748589480196,0.19888246,105590.0,105580.0,0.77779395]
[1748589480628,0.19888246,105590.0,105580.0,0.38815395]
[1748589480841,0.19888246,105590.0,105580.0,0.77779395]
[1748589481271,0.00947005,105590.0,105580.0,1.01073715]
[1748589481491,0.03788038,105590.0,105580.0,1.025278]
[1748589481708,0.00946978,105590.0,105580.0,1.041278]
[1748589481913,0.02840988,105590.0,105580.0,1.041278]
[1748589482145,0.03788029,105590.0,105580.0,1.041278]
[1748589482834,0.04735088,105590.0,105580.0,1.05074913]
[1748589483065,0.0378811,105590.0,105580.0,1.05074913]
[1748589483289,0.21782301,105590.0,105580.0,1.02233601]
[1748589483507,0.20835287,105590.0,105580.0,1.00723601]
[1748589483733,0.19888246,105590.0,105580.0,0.81780629]
[1748589483946,0.19888246,105590.0,105580.0,0.6270675]
[1748589484163,0.19888246,105590.0,105580.0,1.0167075]
[1748589484375,0.19888246,105590.0,105580.0,1.12941881]
[1748589484589,0.19888246,105590.0,105580.0,1.4167075]
[1748589485713,0.19888246,105590.0,105580.0,1.2083348]
[1748589485919,0.18941187,105590.0,105580.0,1.17779395]
[1748589487668,0.18941187,105590.0,105580.0,0.88069395]
[1748589488328,0.18941187,105590.0,105580.0,0.49105395]
[1748589488551,0.18941187,105590.0,105580.0,0.88069395]
[1748589495248,0.18941187,105590.0,105580.0,1.28961395]
[1748589495880,0.18941187,105590.0,105580.0,1.50501516]
[1748589496098,0.18941187,105590.0,105580.0,1.30611395]
[1748589499164,0.18941187,105590.0,105580.0,1.00935395]
[1748589499377,0.22001187,105590.0,105580.0,0.59285395]
[1748589499586,0.22001187,105590.0,105580.0,0.88961395]
[1748589500040,0.18941187,105590.0,105580.0,0.88961395]
[1748589501943,0.18441187,105590.0,105580.0,0.88961395]
[1748589503874,0.18441187,105590.0,105580.0,0.90551395]
[1748589504563,0.19388228,105590.0,105580.0,0.93058526]
[1748589504779,0.02841105,105590.0,105580.0,1.13895715]
[1748589504989,0.02841105,105590.0,105580.0,1.1294862]
[1748589505228,0.02841105,105590.0,105580.0,1.43605706]
[1748589505229,0.02841042,105590.0,105580.0,1.43605706]
[1748589505705,0.23676338,105590.0,105580.0,1.43605724]
[1748589505921,0.22729351,105590.0,105580.0,1.4265862]
[1748589506564,0.21782337,105590.0,105580.0,1.41711507]
[1748589506779,0.21782337,105590.0,105580.0,1.8265862]
[1748589507194,0.21782337,105590.0,105580.0,1.86006895]
[1748589507195,0.01894001,105590.0,105580.0,1.86006895]
[1748589507410,0.19886353,105600.0,105590.0,0.2083526]
[1748589507641,0.21780255,105600.0,105590.0,0.32437669]
[1748589507859,0.21780255,105600.0,105590.0,0.30543632]
[1748589508073,0.01893929,105600.0,105590.0,0.31490673]
[1748589508304,0.21414463,105620.0,105610.0,0.20831351]
[1748589508524,0.19839202,105620.0,105610.0,0.48065395]
[1748589508969,0.19839202,105620.0,105610.0,0.49655395]
[1748589509653,0.19839202,105620.0,105610.0,0.48065395]
[1748589510300,0.19839202,105620.0,105610.0,0.48061395]
[1748589510739,0.19839202,105620.0,105610.0,0.09105395]
[1748589510978,0.20839224,105570.0,105560.0,0.00870625]
[1748589511212,0.20839224,105570.0,105560.0,0.4130602]
[1748589511449,0.20839224,105570.0,105560.0,0.43793348]
[1748589511662,0.20839224,105570.0,105560.0,0.4342948]
[1748589511870,0.20839224,105570.0,105560.0,0.7742948]
[1748589512301,0.20839224,105570.0,105560.0,0.77444227]
[1748589512514,0.20839224,105570.0,105560.0,1.17460227]
[1748589512722,0.20839224,105570.0,105560.0,1.16006142]
[1748589512940,0.20839224,105570.0,105560.0,1.17460227]
[1748589513369,0.20839224,105570.0,105560.0,1.17760227]
[1748589513847,0.20839224,105570.0,105560.0,0.79654856]
[1748589514486,0.20839224,105570.0,105560.0,0.78060227]
[1748589515011,0.19892013,105570.0,105560.0,0.78060227]
[1748589516220,0.19892013,105570.0,105560.0,0.46910142]
[1748589516425,0.19892013,105570.0,105560.0,0.85906142]
[1748589516899,0.18944775,105570.0,105560.0,1.25906142]
[1748589520886,0.18944775,105570.0,105560.0,1.86704899]
[1748589521099,0.19892004,105570.0,105560.0,1.86704899]
[1748589521311,0.20839224,105570.0,105560.0,1.86704908]
[1748589521541,0.19891652,105580.0,105570.0,0.23022004]
[1748589521750,0.20838765,105580.0,105570.0,1.13421402]
[1748589521967,0.20838765,105580.0,105570.0,1.12474191]
[1748589522174,0.20838765,105580.0,105570.0,1.53421411]
[1748589522398,0.20838765,105580.0,105570.0,1.54368622]
[1748589522617,0.20838765,105580.0,105570.0,1.53421411]
[1748589522852,0.20838765,105580.0,105570.0,1.53521411]
[1748589523343,0.00947113,105580.0,105570.0,1.54975496]
[1748589523574,0.00947086,105580.0,105570.0,1.90869873]
[1748589523790,0.01894199,105580.0,105570.0,1.90869873]
[1748589524015,0.02841339,105580.0,105570.0,1.90869873]
[1748589524234,0.0284133,105580.0,105570.0,1.90869873]
[1748589524444,0.0189419,105580.0,105570.0,1.90869873]
[1748589524691,0.00947086,105580.0,105570.0,1.56869873]
[1748589525116,0.02841078,105590.0,105580.0,0.25861433]
[1748589525353,0.00946978,105590.0,105580.0,1.14835705]
[1748589525566,0.36840844,105600.0,105590.0,0.25022256]
[1748589525794,0.36840844,105600.0,105590.0,0.72631447]
[1748589526043,0.02840844,105600.0,105590.0,0.73578452]
[1748589526291,0.02840835,105600.0,105590.0,0.74525448]
[1748589526774,0.02840835,105600.0,105590.0,0.75074656]
[1748589527010,0.01893821,105600.0,105590.0,0.76528741]
[1748589527252,0.03887714,105600.0,105590.0,0.76528741]
[1748589528019,0.22827107,105600.0,105590.0,0.75581754]
[1748589528240,0.22827107,105600.0,105590.0,0.76528759]
[1748589528494,0.03887714,105600.0,105590.0,0.77475755]
[1748589528711,0.03887705,105600.0,105590.0,0.77475755]
[1748589528923,0.03887705,105600.0,105590.0,0.75581754]
[1748589528924,0.22827098,105600.0,105590.0,0.75581754]
[1748589529145,0.03887705,105600.0,105590.0,1.06238759]
[1748589529393,0.03887705,105600.0,105590.0,1.07185755]
[1748589529676,0.02940754,105600.0,105590.0,1.07185755]
[1748589529910,0.01993812,105600.0,105590.0,1.76308547]
[1748589530129,0.02840736,105600.0,105590.0,1.36857755]
[1748589530347,0.03987687,105600.0,105590.0,1.07185755]
[1748589530562,0.03987687,105600.0,105590.0,1.36857755]
[1748589530563,0.04934647,105600.0,105590.0,1.36857755]
[1748589530774,0.03787687,105600.0,105590.0,1.07185755]
[1748589530983,0.03787687,105600.0,105590.0,1.36857755]
[1748589531832,0.03787687,105600.0,105590.0,1.35910759]
[1748589532048,0.2272708,105600.0,105590.0,1.35910759]
[1748589532260,0.03787687,105600.0,105590.0,1.36857755]
[1748589532472,0.04734647,105600.0,105590.0,1.36857755]
[1748589533318,0.04734647,105600.0,105590.0,1.70857755]
[1748589533735,0.03787678,105600.0,105590.0,1.70857755]
[1748589533950,0.01893821,105600.0,105590.0,2.10281413]
[1748589534165,0.02840763,105600.0,105590.0,2.10281413]
[1748589534385,0.03787714,105600.0,105590.0,2.10281413]
[1748589534590,0.22665509,105610.0,105600.0,0.20833304]
[1748589534803,0.22665509,105610.0,105600.0,0.40782699]
[1748589535033,0.22665509,105610.0,105600.0,0.40782717]
[1748589535253,0.21718665,105610.0,105600.0,0.59949395]
[1748589535988,0.21718665,105610.0,105600.0,0.58389395]
[1748589537527,0.24868665,105610.0,105600.0,0.88057395]
[1748589537969,0.23278665,105610.0,105600.0,0.18389395]
[1748589538207,0.19886344,105600.0,105590.0,0.2971]
[1748589538457,0.19886344,105600.0,105590.0,0.82099395]
[1748589538678,0.19886344,105600.0,105590.0,1.11767395]
[1748589539996,0.23036344,105600.0,105590.0,0.48099395]
[1748589540209,0.23036344,105600.0,105590.0,0.77767395]
[1748589540425,0.23036344,105600.0,105590.0,0.38815395]
[1748589540640,0.23036344,105600.0,105590.0,0.38952]
[1748589545678,0.20837234,105580.0,105570.0,1.47636]
[1748589545910,0.20837234,105580.0,105570.0,1.94183395]
[1748589546610,0.20837234,105580.0,105570.0,1.64515395]
[1748589546842,0.20837234,105580.0,105570.0,1.94183395]
[1748589547078,0.20837234,105580.0,105570.0,1.95430633]
[1748589547315,0.20837234,105580.0,105570.0,1.96003395]
[1748589547781,0.20837234,105580.0,105570.0,1.96303395]
[1748589547989,0.20837234,105580.0,105570.0,2.16195399]
[1748589548776,0.20837234,105580.0,105570.0,2.17142619]
[1748589549428,0.20837234,105580.0,105570.0,1.96303395]
[1748589551503,0.20837234,105580.0,105570.0,2.16195399]
[1748589552120,0.19890121,105580.0,105570.0,1.96303395]
[1748589552552,0.19890121,105580.0,105570.0,1.21831395]
[1748589552763,0.19890121,105580.0,105570.0,1.60783395]
[1748589553617,0.19890121,105580.0,105570.0,1.62353395]
[1748589555614,0.17990121,105580.0,105570.0,1.62353395]
[1748589557794,0.17990121,105580.0,105570.0,0.89595395]
[1748589558024,0.21130121,105580.0,105570.0,0.89595395]
[1748589558247,0.21130121,105580.0,105570.0,1.19415395]
[1748589558466,0.19520121,105580.0,105570.0,1.19415395]
[1748589558685,0.19520121,105580.0,105570.0,1.19115395]
[1748589558904,0.17990121,105580.0,105570.0,1.19115395]
[1748589559239,0.17990121,105580.0,105530.0,0.5]
[1748589559240,0.20845114,105540.0,105530.0,0.5]
[1748589559499,0.22495114,105540.0,105530.0,0.68389395]
[1748589559736,0.22495114,105540.0,105530.0,0.59284]
[1748589559970,0.21549535,105530.0,105520.0,0.05346846]
[1748589560232,0.21549535,105530.0,105520.0,0.44466846]
[1748589560709,0.21554442,105530.0,105520.0,0.44466846]
[1748589561632,0.21654442,105530.0,105520.0,0.44466846]
[1748589561890,0.21654442,105530.0,105520.0,0.44458846]
[1748589562615,0.21954442,105530.0,105520.0,0.44458846]
[1748589562880,0.57494442,105530.0,105520.0,0.05346846]
[1748589563355,0.57494442,105530.0,105520.0,0.44446846]
[1748589566311,0.57494442,105530.0,105520.0,0.44474846]
[1748589566560,0.57494442,105530.0,105520.0,0.44470846]
[1748589567323,0.57494442,105530.0,105520.0,0.05346846]
[1748589567588,0.57494442,105530.0,105520.0,0.44470846]
[1748589570527,0.23494442,105530.0,105520.0,0.44470846]
[1748589570755,0.21954442,105530.0,105520.0,0.44470846]
[1748589571423,0.55954442,105530.0,105520.0,0.44470846]
[1748589573708,0.57484442,105530.0,105520.0,0.44470846]
[1748589574394,0.23484442,105530.0,105520.0,0.44470846]
[1748589575327,0.21954442,105530.0,105520.0,0.44470846]
[1748589575786,0.20304442,105530.0,105520.0,0.44470846]
[1748589580954,0.54304442,105530.0,105520.0,0.44470846]
[1748589582989,0.54304442,105530.0,105520.0,0.05346846]
[1748589583185,0.20304442,105530.0,105520.0,0.17582241]
[1748589583482,0.20304442,105530.0,105520.0,0.58160326]
[1748589583711,0.17504442,105530.0,105520.0,0.58160326]
[1748589584156,0.18452021,105530.0,105520.0,0.58160326]
[1748589587028,0.19399591,105530.0,105520.0,0.78061765]
[1748589587244,0.19399591,105530.0,105520.0,0.79957094]
[1748589588403,0.19399591,105530.0,105520.0,0.79009434]
[1748589588637,0.18352021,105530.0,105520.0,0.98160326]
[1748589588867,0.18052021,105530.0,105520.0,0.99108004]
[1748589589095,0.18052021,105530.0,105520.0,0.98160326]
[1748589589535,0.21302021,105530.0,105520.0,0.05346846]
[1748589589749,0.55302021,105530.0,105520.0,0.05346846]
[1748589589969,0.5525219,105530.0,105520.0,0.05346846]
[1748589590381,0.5535219,105530.0,105520.0,0.05346846]
[1748589590600,0.5535219,105530.0,105520.0,0.14730846]
[1748589591030,0.2135219,105530.0,105520.0,0.14730846]
[1748589591688,0.2125219,105530.0,105520.0,0.14730846]
[1748589592956,0.2155219,105530.0,105520.0,0.14730846]
[1748589593585,0.2165219,105530.0,105520.0,0.14730846]
[1748589597523,0.1840219,105530.0,105520.0,0.14730846]
[1748589598481,0.1840219,105530.0,105520.0,0.26906241]
[1748589600473,0.1840219,105530.0,105520.0,0.66906241]
[1748589601824,0.1840219,105530.0,105520.0,0.88261756]
[1748589602080,0.21251994,105530.0,105520.0,0.88261756]
[1748589602316,0.22199582,105530.0,105520.0,0.88261756]
[1748589602534,0.20304451,105530.0,105520.0,0.68360326]
[1748589602748,0.20304451,105530.0,105520.0,0.88261756]
[1748589602963,0.19356863,105530.0,105520.0,0.68360326]
[1748589603846,0.19256863,105530.0,105520.0,0.68360326]
[1748589604517,0.19256863,105530.0,105520.0,0.89209407]
[1748589604518,0.2020446,105530.0,105520.0,0.89209407]
[1748589604742,0.1990446,105530.0,105520.0,0.88261756]
[1748589605174,0.1990446,105530.0,105520.0,0.68360326]
[1748589605434,0.2000446,105530.0,105520.0,0.69308013]
[1748589605645,0.2000446,105530.0,105520.0,0.88261765]
[1748589605859,0.2000446,105530.0,105520.0,0.89209443]
[1748589606093,0.2000446,105530.0,105520.0,1.18919443]
[1748589607043,0.2095203,105530.0,105520.0,1.18919443]
[1748589607259,0.02947528,105530.0,105520.0,1.20814718]
[1748589607686,0.03895098,105530.0,105520.0,1.20814718]
[1748589607925,0.04842677,105530.0,105520.0,1.20814718]
[1748589608158,0.02947528,105530.0,105520.0,1.20814718]
[1748589608400,0.03895107,105530.0,105520.0,1.20814718]
[1748589608682,0.01052424,105530.0,105520.0,1.20814718]
[1748589608926,0.00104907,105530.0,105520.0,2.13772841]
[1748589609389,0.01052424,105530.0,105520.0,1.74265518]
[1748589609616,0.01052424,105530.0,105520.0,1.71897818]
[1748589609828,0.01052424,105530.0,105520.0,1.54814718]
[1748589609829,0.00104907,105530.0,105520.0,1.54814718]
[1748589610052,0.01052424,105530.0,105520.0,1.54814718]
[1748589610260,0.00104907,105530.0,105520.0,1.54814718]
[1748589610724,0.02841849,105560.0,105550.0,0.57244596]
[1748589610944,0.02841849,105560.0,105550.0,1.49703197]
[1748589611158,0.2273581,105560.0,105550.0,1.48755842]
[1748589611377,0.2273581,105560.0,105550.0,1.88755842]
[1748589611867,0.21788527,105560.0,105550.0,1.89689392]
[1748589612104,0.20841217,105560.0,105550.0,1.90636792]
[1748589612325,0.20941217,105560.0,105550.0,1.91584183]
[1748589612805,0.20941217,105560.0,105550.0,1.90636792]
[1748589613033,0.26642829,105560.0,105550.0,1.34268686]
[1748589613277,0.1904657,105560.0,105550.0,1.04856991]
[1748589613505,0.1904657,105560.0,105550.0,1.32262906]
[1748589614875,0.1904657,105560.0,105550.0,1.33892906]
[1748589615106,0.1999388,105560.0,105550.0,1.16450129]
[1748589615339,0.21888491,105560.0,105550.0,1.54275356]
[1748589615551,0.21888491,105560.0,105550.0,1.55222774]
[1748589616221,0.21888491,105560.0,105550.0,1.57130785]
[1748589616444,0.21888491,105560.0,105550.0,1.56170174]
[1748589616661,0.20941208,105560.0,105550.0,1.56170174]
[1748589616870,0.20941208,105560.0,105550.0,1.55222774]
[1748589617331,0.20941208,105560.0,105550.0,1.57117547]
[1748589618214,0.20941208,105560.0,105550.0,1.55222774]
[1748589618440,0.19993898,105560.0,105550.0,1.35326991]
[1748589618659,0.19993898,105560.0,105550.0,1.35286991]
[1748589620903,0.19993898,105560.0,105550.0,1.64996991]
[1748589621155,0.19993898,105560.0,105550.0,1.66874145]
[1748589621592,0.1904657,105560.0,105550.0,1.66874145]
[1748589621808,0.1904657,105560.0,105550.0,1.67821563]
[1748589622053,0.1904657,105560.0,105550.0,1.86769928]
[1748589622331,0.01047247,105560.0,105550.0,2.29119397]
[1748589622553,0.01047265,105560.0,105550.0,2.63119406]
[1748589622764,0.01994539,105560.0,105550.0,2.24559438]
[1748589622972,0.02941831,105560.0,105550.0,2.24559438]
[1748589623189,0.03889132,105560.0,105550.0,2.24559438]
[1748589623638,0.04836442,105560.0,105550.0,2.24559438]
[1748589623856,0.23783075,105560.0,105550.0,2.22664719]
[1748589624065,0.02941867,105560.0,105550.0,2.23612074]
[1748589624487,0.03889177,105560.0,105550.0,2.23612074]
[1748589626182,0.02941867,105560.0,105550.0,2.23612074]
[1748589626657,0.03889177,105560.0,105550.0,2.23612074]
[1748589626892,0.22835747,105560.0,105550.0,2.21717337]
[1748589627091,0.03889177,105560.0,105550.0,2.23612092]
[1748589627288,0.04836496,105560.0,105550.0,2.24559447]
[1748589627508,0.001,105560.0,105550.0,2.3376677]
[1748589627712,0.001,105560.0,105550.0,2.6418677]
[1748589627927,0.001,105560.0,105550.0,2.7508607]
[1748589628344,0.01047247,105560.0,105550.0,2.7508607]
[1748589628584,0.01047256,105560.0,105550.0,2.35590747]
[1748589629008,0.01047256,105560.0,105550.0,2.38780747]
[1748589629188,0.001,105560.0,105550.0,2.24691447]
[1748589629408,0.00947247,105560.0,105550.0,2.24691447]
[1748589629618,0.03788809,105570.0,105560.0,0.24958473]
[1748589629860,0.03788809,105570.0,105560.0,0.63773868]
[1748589630060,0.04736047,105570.0,105560.0,0.63773868]
[1748589630274,0.04736047,105570.0,105560.0,1.03773868]
[1748589630858,0.04736047,105570.0,105560.0,1.04721133]
[1748589631269,0.04736047,105570.0,105560.0,1.03773868]
[1748589631523,0.0378888,105570.0,105560.0,1.03773868]
[1748589631744,0.22733655,105570.0,105560.0,1.02826594]
[1748589631966,0.22733655,105570.0,105560.0,1.03773886]
[1748589632186,0.21786462,105570.0,105560.0,1.11519293]
[1748589632451,0.20839242,105570.0,105560.0,1.14361205]
[1748589632907,0.20939242,105570.0,105560.0,1.45684488]
[1748589633338,0.02941669,105570.0,105560.0,1.4473716]
[1748589633545,0.02941669,105570.0,105560.0,1.1436116]
[1748589633757,0.01994431,105570.0,105560.0,1.45668425]
[1748589633963,0.02941669,105570.0,105560.0,1.4472116]
[1748589634183,0.02941669,105570.0,105560.0,1.45668425]
[1748589634608,0.21886444,105570.0,105560.0,1.43757877]
[1748589634813,0.21886444,105570.0,105560.0,1.42810585]
[1748589635033,0.20939242,105570.0,105560.0,1.42810594]
[1748589635254,0.20939242,105570.0,105560.0,1.12466594]
[1748589635478,0.19992013,105570.0,105560.0,0.90061395]
[1748589635701,0.19044775,105570.0,105560.0,1.23770127]
[1748589635912,0.19044775,105570.0,105560.0,0.83774127]
[1748589636130,0.19044775,105570.0,105560.0,1.42708697]
[1748589636788,0.19044775,105570.0,105560.0,1.22814808]
[1748589637220,0.19044775,105570.0,105560.0,1.23762127]
[1748589638349,0.19044775,105570.0,105560.0,1.42708697]
[1748589638561,0.19991995,105570.0,105560.0,1.02720697]
[1748589638773,0.19991995,105570.0,105560.0,1.45126007]
[1748589639173,0.19991995,105570.0,105560.0,1.44178697]
[1748589639652,0.19991995,105570.0,105560.0,1.45126007]
[1748589640280,0.19991995,105570.0,105560.0,1.43231369]
[1748589640699,0.19991995,105570.0,105560.0,1.4228405]
[1748589640922,0.19991995,105570.0,105560.0,0.9302548]
[1748589641135,0.19991995,105570.0,105560.0,1.2329748]
[1748589641350,0.19991995,105570.0,105560.0,1.6268748]
[1748589641769,0.19991995,105570.0,105560.0,1.82581369]
[1748589642199,0.19991995,105570.0,105560.0,1.8163405]
[1748589642414,0.19991995,105570.0,105560.0,1.6267148]
[1748589642621,0.19991995,105570.0,105560.0,1.82565369]
[1748589642827,0.19991995,105570.0,105560.0,1.83512679]
[1748589643062,0.19991995,105570.0,105560.0,1.82565369]
[1748589643277,0.19991995,105570.0,105560.0,1.8351267]
[1748589643497,0.19991995,105570.0,105560.0,1.8502267]
[1748589643948,0.19991995,105570.0,105560.0,1.84075369]
[1748589645402,0.19991995,105570.0,105560.0,1.85022679]
[1748589645955,0.19991995,105570.0,105560.0,1.6418148]
[1748589646156,0.19991995,105570.0,105560.0,1.65128799]
[1748589646370,0.19991995,105570.0,105560.0,1.6418148]
[1748589646573,0.19991995,105570.0,105560.0,1.3392548]
[1748589646794,0.19991995,105570.0,105560.0,1.65152808]
[1748589646995,0.19044775,105570.0,105560.0,1.65152808]
[1748589647752,0.19044775,105570.0,105560.0,1.85046697]
[1748589647951,0.19044775,105570.0,105560.0,1.85993998]
[1748589648233,0.19044775,105570.0,105560.0,1.85046697]
[1748589648569,0.19044775,105570.0,105560.0,1.85993998]
[1748589648772,0.19044775,105570.0,105560.0,1.4702529]
[1748589648977,0.19044775,105570.0,105560.0,1.45130697]
[1748589649183,0.19044775,105570.0,105560.0,1.85929989]
[1748589649590,0.19044775,105570.0,105560.0,1.84982697]
[1748589650166,0.19044775,105570.0,105560.0,1.85929989]
[1748589650407,0.19044775,105570.0,105560.0,1.84982697]
[1748589651092,0.19044775,105570.0,105560.0,1.85929998]
[1748589651336,0.20939188,105570.0,105560.0,1.87824573]
[1748589651978,0.20939188,105570.0,105560.0,1.65088808]
[1748589652204,0.20939188,105570.0,105560.0,1.6414148]
[1748589652418,0.20939188,105570.0,105560.0,1.65088808]
[1748589653392,0.20939188,105570.0,105560.0,1.84035378]
[1748589653594,0.20939188,105570.0,105560.0,1.84982697]
[1748589654208,0.20939188,105570.0,105560.0,1.84910679]
[1748589654444,0.20939188,105570.0,105560.0,1.85857971]
[1748589654652,0.20939188,105570.0,105560.0,1.84910679]
[1748589654995,0.19991995,105570.0,105560.0,1.84910697]
[1748589655491,0.19991995,105570.0,105560.0,1.6406948]
[1748589655705,0.19044775,105570.0,105560.0,1.8301605]
[1748589655909,0.19044775,105570.0,105560.0,1.83963369]
[1748589656562,0.19044775,105570.0,105560.0,1.6406948]
[1748589657003,0.19044775,105570.0,105560.0,1.6403748]
[1748589657216,0.19044775,105570.0,105560.0,1.83931369]
[1748589657432,0.19044775,105570.0,105560.0,1.6403748]
[1748589657662,0.19044775,105570.0,105560.0,1.83931369]
[1748589658128,0.19044775,105570.0,105560.0,1.8487867]
[1748589658315,0.19992013,105570.0,105560.0,1.8487867]
[1748589659630,0.20939224,105570.0,105560.0,1.85825962]
[1748589659838,0.20939224,105570.0,105560.0,1.86773245]
[1748589661868,0.20939224,105570.0,105560.0,1.87720519]
[1748589662304,0.02941615,105570.0,105560.0,1.87720465]
[1748589662780,0.03888738,105570.0,105560.0,1.87720465]
[1748589662998,0.04835949,105570.0,105560.0,1.87720465]
[1748589663420,0.04835949,105570.0,105560.0,2.27171869]
[1748589663638,0.02941518,105570.0,105560.0,2.27171869]
[1748589663851,0.0483594,105570.0,105560.0,2.27171869]
[1748589664303,0.04836011,105570.0,105560.0,2.27171869]
[1748589664743,0.04836011,105570.0,105560.0,1.87720465]
[1748589665174,0.04836082,105570.0,105560.0,1.87720465]
[1748589665590,0.04836082,105570.0,105560.0,1.867732]
[1748589666695,0.04836082,105570.0,105560.0,1.87720465]
[1748589666906,0.03888844,105570.0,105560.0,1.87720465]
[1748589667116,0.04836082,105570.0,105560.0,1.47972465]
[1748589667324,0.04836082,105570.0,105560.0,1.87584465]
[1748589667979,0.04836082,105570.0,105560.0,1.87572465]
[1748589668196,0.22833664,105570.0,105560.0,1.866252]
[1748589668815,0.22833664,105570.0,105560.0,1.85677926]
[1748589669556,0.02941651,105570.0,105560.0,1.86625191]
[1748589669763,0.01994422,105570.0,105560.0,1.86625191]
[1748589669976,0.21886426,105570.0,105560.0,1.84730643]
[1748589670421,0.02941651,105570.0,105560.0,1.85677908]
[1748589671018,0.21886426,105570.0,105560.0,1.85677917]
[1748589671363,0.02941651,105570.0,105560.0,1.86625182]
[1748589671567,0.02690628,105570.0,105560.0,1.86625182]
[1748589672407,0.22582641,105570.0,105560.0,1.85677926]
[1748589672616,0.22582641,105570.0,105560.0,1.866252]
[1748589672786,0.02690628,105570.0,105560.0,1.866252]
[1748589673001,0.03637866,105570.0,105560.0,1.866252]
[1748589673261,0.22582641,105570.0,105560.0,1.55689926]
[1748589673472,0.22582641,105570.0,105560.0,1.85645926]
[1748589674341,0.22582641,105570.0,105560.0,1.865932]
[1748589675192,0.03637866,105570.0,105560.0,1.87540465]
[1748589675421,0.01743399,105570.0,105560.0,1.87540465]
[1748589675646,0.02690574,105570.0,105560.0,1.87540465]
[1748589675868,0.00947122,105580.0,105570.0,0.23386408]
[1748589676084,0.21408887,105590.0,105580.0,0.24241388]
[1748589676085,0.01894019,105590.0,105580.0,0.24241388]
[1748589676308,0.01894019,105590.0,105580.0,1.15428272]
[1748589676532,0.00880846,105600.0,105590.0,0.23236323]